Cogmind - Beta 11 @@@ ROGUE MODE // 2022.04.16 @ 14:32:31 Player: RNGesus Result: Destroyed by DAS Turret with DAS Cannon Performance ------------- Evolutions (1) 500 Regions Visited (5) 1000 Robots Destroyed (62) 310 Value Destroyed (1127) 1127 Prototype IDs (28) 560 Alien Tech Used (0) 0 Bonus (192) 192 TOTAL SCORE: 3689 Bonus ------- High Alert Combat Kills 16 Follower Combat Kills 475 Aligned with FarCom 300 Friendly Fire -599 Cogmind --------- Core Integrity 0/400 Matter 102/300 Energy 81/100 System Corruption 0% Temperature Cool (0) Movement Treading (160) Location -9/Exiles Parts ------- > --- POWER (1) -------- (None) > --- PROPULSION (3) --- Light Treads Light Treads Light Treads > --- UTILITY (3) ------ High-capacity Storage Unit > --- WEAPON (2) ------- Heavy Assault Rifle Improved Assault Rifle > --- INVENTORY (20) --- Improved Flight Unit Improved Flight Unit Improved Flight Unit Improved Flight Unit Experimental Sensor Array Hacking Suite Heavy Assault Rifle Improved Assault Rifle Improved Assault Rifle Mini Grenade Launcher Improved Grenade Launcher Plasma Cutter Peak State ------------ > --- POWER ------------ Improved Ion Engine > --- PROPULSION ------- Light Treads Light Treads Armored Wheel > --- UTILITY ---------- High-capacity Storage Unit Experimental Sensor Array Light Armor Plating > --- WEAPON ----------- Heavy Assault Rifle Improved Assault Rifle > --- INVENTORY -------- Improved Ion Engine Light Treads Light Treads Light Treads Light Treads Improved Flight Unit Improved Flight Unit Improved Flight Unit Improved Flight Unit Light Armor Plating Medium Armor Plating Medium Armor Plating Hacking Suite Heavy Assault Rifle Improved Assault Rifle Improved Assault Rifle Improved Assault Rifle Mini Grenade Launcher Improved Grenade Launcher Plasma Cutter [Rating: 26] Favorites ----------- Power Improved Ion Engine Engine Improved Ion Engine Propulsion Light Treads Treads Light Treads Leg Aluminum Leg Wheel Armored Wheel Flight Unit Improved Flight Unit Utility Light Armor Plating Device Improved Heat Sink Storage High-capacity Storage Unit Protection Light Armor Plating Weapon Assault Rifle Ballistic Gun Assault Rifle Launcher Improved Grenade Launcher Build | -11 -10 -10 -9 -9 -9 ------- Run | Scr Mat Min Mat Min Exi Slots Evolved 2 | . . . 2 . . Power . | . . . . . . Propulsion 1 | . . . 1 . . Utility 1 | . . . 1 . . Weapon . | . . . . . . Parts Attached 44 | 6 7 2 15 4 10 Power 3 | 1 1 . . . 1 Engine 3 | 1 1 . . . 1 Core . | . . . . . . Reactor . | . . . . . . Propulsion 19 | 2 3 2 8 . 4 Treads 14 | 2 3 1 4 . 4 Leg 1 | . . . 1 . . Wheel 3 | . . 1 2 . . Hover . | . . . . . . Flight 1 | . . . 1 . . Utility 11 | 1 2 . 4 2 2 Device 4 | . 1 . 2 1 . Storage 3 | 1 1 . 1 . . Processor . | . . . . . . Hackware . | . . . . . . Protection 4 | . . . 1 1 2 Artifact . | . . . . . . Weapon 11 | 2 1 . 3 2 3 Energy Gun . | . . . . . . Energy Cannon . | . . . . . . Ballistic Gun 9 | 2 1 . 3 1 2 Ballistic Cannon . | . . . . . . Launcher 2 | . . . . 1 1 Special Weapon . | . . . . . . Impact Weapon . | . . . . . . Slashing Weapon . | . . . . . . Piercing Weapon . | . . . . . . Special Melee Weapon . | . . . . . . Unidentified Prototypes 3 | . . . 2 1 . Parts Lost 13 | . . 2 1 . 10 Power 2 | . . . . . 2 Propulsion 5 | . . 2 . . 3 Utility 4 | . . . . . 4 Weapon 2 | . . . 1 . 1 Highest Loss Streak 5 | . . 1 1 . 5 To Critical Strikes 3 | . . . . . 3 Average Slot Usage (%) 98 | . 93 99 99 100 99 Engine 12 | . 14 14 11 11 10 Treads 23 | . 27 22 19 22 27 Wheel 6 | . . 5 11 11 5 Device 8 | . 7 14 11 8 . Storage 12 | . 14 14 11 11 11 Protection 8 | . . . 11 13 21 Ballistic Gun 24 | . 28 28 21 21 21 Naked Turns . | . . . . . . Heaviest Build 63 | 14 34 32 57 63 63 Greatest Support 60 | 40 40 40 12 12 60 Greatest Overweight (x) 5 | . 1 3 4 5 5 Average Overweight (x) 2 | . . 1 3 4 3 Largest Inventory Capacity 20 | 8 15 15 20 20 20 Average Capacity 16 | 7 13 15 17 20 20 Most Carried 20 | 4 15 15 20 20 20 Average Carried 15 | 2 12 13 17 19 17 Final Capacity 20 | 8 15 15 20 20 20 Final Carried 20 | 4 15 15 20 20 12 Class Distribution -------------------- 81% | Mutant 18% | Scavenger-Mutant Dominant Class ---------------- Mutant | -10/Materials Mutant | -10/Mines Mutant | -9/Materials Scavenger-Mutant | -9/Mines Mutant | -9/Exiles Resources | -11 -10 -10 -9 -9 -9 ----------- Run | Scr Mat Min Mat Min Exi Matter Collected 1580 | 202 458 153 507 146 114 Remotely . | . . . . . . Salvage Created 2057 | 36 645 322 798 131 125 Parts 131 | 5 32 11 52 24 7 Haulers Intercepted 8 | . 2 . 6 . . Recyclers Shooed 3 | . 1 . 2 . . Parts Field Recycled . | . . . . . . Retrieved Matter . | . . . . . . Parts Self-Destructed . | . . . . . . Prevented . | . . . . . . Kills | -11 -10 -10 -9 -9 -9 ------- Run | Scr Mat Min Mat Min Exi Combat Hostiles Destroyed 41 | . 12 9 7 9 4 Guns 34 | . 12 9 7 5 1 AOE 7 | . . . . 4 3 Classes Destroyed 11 | 1 6 . 3 . 1 Worker 3 | . 1 1 . 1 . Builder 1 | . . . 1 . . Tunneler 4 | 2 1 . . 1 . Hauler 8 | . 2 . 6 . . Recycler 3 | . 2 . 1 . . Operator 4 | . 1 . 3 . . Watcher 1 | . . . 1 . . Swarmer 16 | . 5 3 . 8 . Grunt 18 | . 7 6 4 1 . Sentry 3 | . . . 3 . . Assembled 6 | . . . . . 6 Best Kill Streak 6 | 1 6 3 3 5 3 Combat Bots Only 5 | . 5 3 1 4 3 Max Kills in Single Turn 3 | 1 2 2 1 3 3 Gunslinging 1 | . 1 . . 1 . Exploded 3 | . . . . 2 3 Melee . | . . . . . . Uniques/NPCs Destroyed 1 | . . . . . 1 8R-AWN (-9/Exiles) Combat | -11 -10 -10 -9 -9 -9 -------- Run | Scr Mat Min Mat Min Exi Damage Taken 2665 | . 448 267 295 90 1565 Core 514 | . 70 35 32 38 339 Absorbed by Shields . | . . . . . . Core Remaining (%) 79 | 100 . 58 . . . Volleys Fired 196 | 8 47 23 63 17 38 Largest 2 | 2 2 2 2 2 2 Hottest 46 | 40 40 40 43 46 46 Shots Fired 388 | 16 94 46 126 32 74 Gun 384 | 16 94 46 126 30 72 Cannon . | . . . . . . Launcher 4 | . . . . 2 2 Special . | . . . . . . Kinetic 384 | 16 94 46 126 30 72 Thermal . | . . . . . . Explosive 4 | . . . . 2 2 Electromagnetic . | . . . . . . Robot Hit Streak 40 | 4 9 13 18 12 40 Robot Miss Streak 5 | 5 2 2 5 2 2 Penetration Max . | . . . . . . Secondary Targets 5 | . 2 2 . 1 . Max Gunslinging Chain 1 | . 1 1 . 1 . Shots Hit Robots 273 | 7 70 32 80 17 67 Core Hits 119 | 2 30 18 32 12 25 Critical Kills . | . . . . . . Critical Parts Destroyed 2 | . . 1 1 . . Critical Strikes 2 | . . 1 1 . . Destroy 2 | . . 1 1 . . Melee Attacks . | . . . . . . Impact . | . . . . . . Slashing . | . . . . . . Piercing . | . . . . . . Sneak Attacks . | . . . . . . Combat Hostiles . | . . . . . . Follow-up Attacks . | . . . . . . Damage Inflicted 4429 | 67 934 425 1115 528 1360 Guns 3715 | 67 924 425 1115 246 938 Cannons . | . . . . . . Explosions 704 | . . . . 282 422 Melee . | . . . . . . Ramming 10 | . 10 . . . . Kinetic 3715 | 67 924 425 1115 246 938 Thermal . | . . . . . . Explosive 704 | . . . . 282 422 Electromagnetic . | . . . . . . Impact . | . . . . . . Slashing . | . . . . . . Piercing . | . . . . . . Highest Corruption . | . . . . . . Average Corruption . | . . . . . . Corruption Purged . | . . . . . . Corruption Blocked . | . . . . . . Overload Shots . | . . . . . . Overflow Damage 48 | . . . . 25 23 Projectiles . | . . . . . . Explosions 48 | . . . . 25 23 Melee . | . . . . . . Knockbacks . | . . . . . . Impact . | . . . . . . Kinetic . | . . . . . . Secondary . | . . . . . . Self-Inflicted Damage . | . . . . . . Shots . | . . . . . . Rammed . | . . . . . . Targets Rammed 1 | . 1 . . . . Kicked . | . . . . . . Crushed 1 | . 1 . . . . Highest Temperature 8 | . 2 7 8 . 8 Average Temperature 3 | . 2 7 2 . 5 Received Heat Transfer 402 | . 114 159 129 . . Siege Activations . | . . . . . . Robots Corrupted . | . . . . . . Combat Hostiles . | . . . . . . Parts Fried . | . . . . . . Impact Corruptions . | . . . . . . Robots Melted . | . . . . . . Combat Hostiles . | . . . . . . Parts Melted 1 | . . . 1 . . Heat Transferred . | . . . . . . Parts Sabotaged . | . . . . . . Parts Stolen . | . . . . . . Parts Stripped . | . . . . . . Power Chain Reactions . | . . . . . . Missiles Intercepted . | . . . . . . Alert | -11 -10 -10 -9 -9 -9 ------- Run | Scr Mat Min Mat Min Exi Peak Influence 479 | 10 338 207 479 460 . Initial 124 | . 6 27 32 124 . Average 210 | 2 122 81 334 260 . Maximum Alert Level 2 | . 1 1 2 2 . Low Security (%) 49 | 100 86 89 9 28 . Level 1 41 | . 13 10 74 54 . Level 2 8 | . . . 16 16 . Level 3 . | . . . . . . Level 4 . | . . . . . . Level 5 . | . . . . . . High Security . | . . . . . . Max Security . | . . . . . . Squads Dispatched 7 | . 2 1 4 . . Investigation 1 | . . 1 . . . Extermination . | . . . . . . Reinforcement 6 | . 2 . 4 . . Assault . | . . . . . . Garrison . | . . . . . . Intercept . | . . . . . . Searches Triggered . | . . . . . . Construction Impeded . | . . . . . . Haulers Reinforced . | . . . . . . Active Scanning Responses . | . . . . . . Cargo Convoy Interrupts . | . . . . . . Stealth | -11 -10 -10 -9 -9 -9 --------- Run | Scr Mat Min Mat Min Exi Distress Signals 8 | . 3 . 5 . . Communications Jammed . | . . . . . . Distress Signals . | . . . . . . Times Spotted 92 | . 30 10 27 12 13 Peak Tracking Total 7 | . 7 2 3 4 6 Tactical Retreats 3 | . . . 1 . 2 Traps | -11 -10 -10 -9 -9 -9 ------- Run | Scr Mat Min Mat Min Exi Traps Triggered 3 | . 3 . . . . Indirectly . | . . . . . . Trap Hack Attempts . | . . . . . . Triggered . | . . . . . . Disarmed . | . . . . . . Reprogrammed . | . . . . . . Reused . | . . . . . . Traps Extracted . | . . . . . . Installed . | . . . . . . Triggered . | . . . . . . Machines | -11 -10 -10 -9 -9 -9 ---------- Run | Scr Mat Min Mat Min Exi Machines Disabled 6 | . . . 3 . 3 Max in Single Turn 2 | . . . 1 . 2 Machines Sabotaged . | . . . . . . Garrisons Compromised . | . . . . . . Overloaded Fab Kills . | . . . . . . Hacking | -11 -10 -10 -9 -9 -9 --------- Run | Scr Mat Min Mat Min Exi Machines Accessed 6 | . 2 1 2 . 1 Terminals 4 | . 2 . 2 . . Fabricators . | . . . . . . Repair Stations . | . . . . . . Recycling Units . | . . . . . . Scanalyzers . | . . . . . . Garrison Access . | . . . . . . Total Hacks 14 | . 6 1 6 . 1 Successful 10 | . 2 1 6 . 1 Failed 4 | . 4 . . . . Catastrophic . | . . . . . . Database Lockouts . | . . . . . . Manual 9 | . 3 . 5 . 1 Terminals 12 | . 6 . 6 . . Fabricators . | . . . . . . Repair Stations . | . . . . . . Recycling Units . | . . . . . . Scanalyzers . | . . . . . . Garrison Access . | . . . . . . Terminal Hacks 9 | . 1 1 6 . 1 Robot Analysis 1 | . . . 1 . . Prototype ID Bank 1 | . . . 1 . . Open Door 1 | . . 1 . . . Branch Access Points 1 | . . . 1 . . Recall Reinforcements 1 | . . . 1 . . Hauler Manifests 2 | . 1 . 1 . . Zone Layout 1 | . . . 1 . . EX-Prototype ID Bank 1 | . . . . . 1 Fabricator Hacks . | . . . . . . Repair Station Hacks . | . . . . . . Recycling Unit Hacks . | . . . . . . Scanalyzer . | . . . . . . Garrison Access Hacks . | . . . . . . Unauthorized Hacks 1 | . 1 . . . . Terminals 1 | . 1 . . . . Operators 1 | . 1 . . . . Fabricators . | . . . . . . Repair Stations . | . . . . . . Recycling Units . | . . . . . . Scanalyzers . | . . . . . . Garrison Access . | . . . . . . Data Cores Recovered 1 | . . . 1 . . Used . | . . . . . . Hacking Detections 4 | . 2 . 2 . . Full Trace Events . | . . . . . . Feedback Events . | . . . . . . Feedback Blocked . | . . . . . . Robot Schematics Acquired . | . . . . . . Robots Built . | . . . . . . Authchips . | . . . . . . Time . | . . . . . . Total Robot Build Rating . | . . . . . . Part Schematics Acquired . | . . . . . . Parts Built . | . . . . . . Authchips . | . . . . . . Time . | . . . . . . Total Part Build Rating . | . . . . . . Parts Repaired . | . . . . . . Time . | . . . . . . Parts Recycled . | . . . . . . Recycled Matter . | . . . . . . Retrieved Matter . | . . . . . . Retrieved Components . | . . . . . . Parts Scanalyzed . | . . . . . . Part Schematics Acquired . | . . . . . . Parts Damaged . | . . . . . . Bothacking | -11 -10 -10 -9 -9 -9 ------------ Run | Scr Mat Min Mat Min Exi Used RIF Installer . | . . . . . . Robots Hacked . | . . . . . . Non-combat . | . . . . . . Combat . | . . . . . . Robot Hacks Applied . | . . . . . . Relay Couplers Released . | . . . . . . Fabnet Peak Effective % . | . . . . . . Robots Rewired . | . . . . . . Allies Hacked . | . . . . . . Hacks Repelled . | . . . . . . Allies | -11 -10 -10 -9 -9 -9 -------- Run | Scr Mat Min Mat Min Exi Total Allies 4 | . . 3 . 1 . Largest Group 3 | . . 3 3 1 . Highest-Rated Group 73 | . . 73 73 31 . Highest-Rated Ally 31 | . . 31 31 31 . Total Orders . | . . . . . . Ally Attacks 82 | . . 6 56 20 . Total Damage 1290 | . . 124 866 300 . Kills 21 | . . 3 15 3 . Allies Corrupted . | . . . . . . Allies Melted . | . . . . . . Intel | -11 -10 -10 -9 -9 -9 ------- Run | Scr Mat Min Mat Min Exi Robot Analysis Total 1 | . . . 1 . . Derelict Logs Recovered 4 | . . 1 . 3 . Drone Launches . | . . . . . . Drone Recoveries . | . . . . . . Exploration | -11 -10 -10 -9 -9 -9 ------------- Run | Scr Mat Min Mat Min Exi Turns Passed 5722 | 151 1161 938 1630 1031 811 Spaces Moved 3173 | 74 606 520 987 631 355 Core 3 | 3 . . . . . Treads 1044 | 71 606 237 . . 130 Legs . | . . . . . . Wheels 2126 | . . 283 987 631 225 Hover . | . . . . . . Flight . | . . . . . . Fastest Speed 50 | 50 160 125 120 150 160 Average Speed 152 | 155 160 141 137 153 191 Slowest Speed 240 | 160 240 240 150 165 240 Overloaded Moves . | . . . . . . Propulsion Burnouts . | . . . . . . Robots Hopped . | . . . . . . Cave-ins Triggered . | . . . . . . Exploration Rate (%) 72 | 4 90 96 93 98 51 Regions Visited 5 Branch Regions 3 Pre-discovered Areas 4 | . . 2 . 2 . Known Exits Taken 1 | . . . 1 . . Unknown Exits Taken 4 | 1 1 1 . 1 . Scrap Searched 2 | . . 1 . 1 . Spaces Dug . | . . . . . . Terrain Destroyed 36 | . . . . 26 10 Melee . | . . . . . . Projectile . | . . . . . . AOE 36 | . . . . 26 10 Terrain Rammed . | . . . . . . Walls Destroyed . | . . . . . . Machines Disabled . | . . . . . . Actions | -11 -10 -10 -9 -9 -9 --------- Run | Scr Mat Min Mat Min Exi Total 3704 | 92 704 678 1153 661 416 Wait 193 | . 18 132 38 5 . Move 3168 | 73 605 519 986 630 355 Hop . | . . . . . . Pick Up 57 | 5 17 2 25 2 6 Fast Attach 13 | 5 4 . 3 1 . Attach 16 | 1 1 2 4 . 8 Detach 1 | . 1 . . . . Swap 15 | . 2 . 8 3 2 Drop 44 | . 8 . 26 3 7 Fire 196 | 8 47 23 63 17 38 Melee . | . . . . . . Ram . | . . . . . . Kick . | . . . . . . Crush 1 | . 1 . . . . Escape Stasis . | . . . . . . Rewire . | . . . . . . Trap . | . . . . . . Miscellaneous . | . . . . . . Route ------- -11/Scrapyard -10/Materials (discovered 5 exits: *Mat x3 / *Min x2) -10/Mines (discovered 2 exits: *Mat x2) -9/Materials (discovered 5 exits: [*Mat x3] / *Min x2) -9/Mines (discovered 3 exits: [*Mat x2] / *Exi) -9/Exiles (discovered 1 exit: [*Min]) History --------- Turn | Location | Event 48 | -11/Scrapyard | Discovered new exit (range 15) 152 | -11/Scrapyard | Entered Materials 305 | -10/Materials | Build established: Mutant 315 | -10/Materials | Discovered new exit (range 16) 504 | -10/Materials | Discovered new exit (range 16) 527 | -10/Materials | Discovered new exit (range 14) 801 | -10/Materials | Discovered new exit (range 15) 1170 | -10/Materials | Discovered new exit (range 16) 1313 | -10/Materials | Entered Mines 1335 | -10/Mines | Learned location of Mines (-8) 1364 | -10/Mines | Excavation squad dispatched 1364 | -10/Mines | A large section of the Mines collapsed 1513 | -10/Mines | Discovered new exit (range 16) 2045 | -10/Mines | Discovered new exit (range 9) 2131 | -10/Mines | Escorted by a lone wolf Derelict 2151 | -10/Mines | Learned location of Storage (-7) 2234 | -10/Mines | Met a Derelict shopkeep closing up shop 2251 | -10/Mines | Entered Materials 2251 | -9/Materials | Accompanied by 3 allies 2251 | -9/Materials | Evolved 2 slots: Propulsion x1, Utility x1 2256 | -9/Materials | Led the pair of lost Derelicts to an unsafe place 2262 | -9/Materials | Identified exit to Mines 2560 | -9/Materials | Discovered new exit (range 9) 3198 | -9/Materials | Discovered new exit (range 16) 3435 | -9/Materials | Discovered new exit (range 3) 3881 | -9/Materials | Entered Mines 3893 | -9/Mines | Learned location of Zion (-6) 3924 | -9/Mines | Met a Derelict bent on vengeance 3943 | -9/Mines | Discovered new exit (range 7) 4047 | -9/Mines | Received a Mining Laser from a helpful Derelict 4234 | -9/Mines | Learned Materials trap positions 4237 | -9/Mines | Build established: Scavenger-Mutant 4303 | -9/Mines | Deemed a non-threat by the Exiles lab entrance 4303 | -9/Mines | Discovered new exit (range 5) 4391 | -9/Mines | Received a Rocket Launcher from a helpful Derelict 4434 | -9/Mines | Discovered new exit (range 6) 4653 | -9/Mines | Found a damaged Exp. Sensor Array with a note attached 4657 | -9/Mines | Found Prototype Device 4657 | -9/Mines | Identified Exp. Sensor Array 4912 | -9/Mines | Entered Exiles 4939 | -9/Exiles | Discovered new exit (range 15) 4968 | -9/Exiles | Build established: Mutant 5045 | -9/Exiles | Met 8R-AWN 5072 | -9/Exiles | Met EX-HEX 5119 | -9/Exiles | Met EX-BIN 5139 | -9/Exiles | Aligned with FarCom system 5141 | -9/Exiles | Given EX-Vault access code 5182 | -9/Exiles | Opened EX-Vault 5220 | -9/Exiles | Warned to stay clear of 0b10 Research branches 5297 | -9/Exiles | Attacked by the Exiles 5393 | -9/Exiles | Core integrity fell below 50% 5399 | -9/Exiles | Destroyed 8R-AWN 5414 | -9/Exiles | Lost 5 parts (1p1n2u1w) 5654 | -9/Exiles | Build established: Scavenger-Mutant 5714 | -9/Exiles | Core integrity fell below 20% 5723 | -9/Exiles | Destroyed by DAS Turret with DAS Cannon Last Messages --------------- 05375_ Penetrated by HV Slug. 05375_ Critical hit (Destroy). 05375_ Imp. Ion Engine destroyed. 05375_ Penetrated by HV Slug. 05375_ Critical hit (Destroy). 05379_ Penetrated by HV Slug. 05383_ Critical hit (Destroy). 05383_ Imp. Assault Rifle destroyed. 05383_ Penetrated by HV Slug. 05383_ Critical hit (Destroy). 05388_ Penetrated by HV Slug. 05394_ The unstable cave ceiling collapses. 05396_ Penetrated by HV Slug. 05399_ 8R-AWN destroyed. 05405_ Acquired 114 matter. 05701_ Med. Armor Plating destroyed. 05705_ Lgt. Treads destroyed. 05711_ Lgt. Armor Plating destroyed. 05715_ Imp. Ion Engine destroyed. 05715_ Lgt. Treads destroyed. Map ----- +----------------------------------------------------+ | ????????????????????????????#" "X" """"????? | | ????????????????????????????#" """ #????? | | ????????????????????????????#" """""""""#????? | | ???????????????????????????##" ###########????? | | ??????????????????????????##"" #??????????????? | | ??????????????????????#####"" #??????????????? | | ?????????????????????#""""""" ##????????##???? | | ?????????????????????""" " "" ##???####"##### | | ???????????????????" """ " #####"""" """" | | ?????????????????? " " """ """ | | ???????????????? " " | | ???????????????? " | | ???????????????? | | ???????????????? " | | ????????????????? | | ?????????????? ?? """""" | | ????????????? ?? ######""" | | ????????????? ? ""#?????#####""" | | ???????????? """#??????????##""" | | ???????????? ????????????????#"""" | | ???????????? ??????????????##"" | | ??????????? ##?#####??####"""" | | ??????????? ##aaa####""" | | ?????????? % """"% | | ??????????t % %% | | ?????????? @ % % % | | ?????????? % " | | ?????????? " % "" """ | | ??????????? ""## ##""" " " ""#" | | ??????????? ""#### ######""" """## | | ???????????? """"##??# #????###""""#### | | ???????????? """????# #??????######??### | | ???????????? ""#????! ????????????????? | | ????????????? """?????#" ???????????????? | | ????????????? ???????#" ???????????????? | | ?????????????? ?????????#!!""!"??????????????? | | ?????????????? ?????????????######??????????????? | | ?????????????????????????????????????????????????? | | ?????????????????????????????????????????????????? | | ?????????????????????????????????????????????????? | | ?????????????????????????????????????????????????? | | ?????????????????????????????????????????????????? | | ?????????????????????????????????????????????????? | | ?????????????????????????????????????????????????? | | ?????????????????????????????????????????????????? | | ?????????????????????????????????????????????????? | | ?????????????????????????????????????????????????? | | ?????????????????????????????????????????????????? | | ?????????????????????????????????????????????????? | | ?????????????????????????????????????????????????? | +----------------------------------------------------+ Best States ------------- Heat Dissipation 42 Energy Generation 12 Energy Capacity 265 Matter Stores 300 Matter Capacity 300 Sight Range 16 Terrain Scan Density 10 Armor Coverage 375 Evasion (%) 40 Recoil Reduction 3 Item Schematics ----------------- None Robot Schematics ------------------ None Fabricated ------------ Nothing Alien Tech Used ----------------- None Achievements -------------- None Challenges ------------ None Game ------ Seed ArmoredArmorSpear Manual? 0 Play Time 00:28:41 Cumulative 334.2 hours Start 2022.04.16 @ 14:00:30 End 2022.04.16 @ 14:32:31 Sessions 1 Manual Loads 0 Difficulty Rogue Special Mode None Game No. 485 Rogue 485 Adventurer 0 Explorer 0 Win Type - Total 6 Types 4/0/1/1/0/0/0/0/0 Lore% 81 Gallery% 84 Achievement% 66 Wizard Run 0 Options --------- ASCII 0 Keyboard 1 Movement Numpad Keybinds 0 Fullscreen 2 Font 24/Smallcaps Map View 76x50 Tactical HUD 1 Map Filters NONE Filters NONE Steam 1 RUN: 8db15f5d-71cd-4192-b26b-2775dc3fbf08